Cogmind - Beta 15 @@@ ROGUE MODE // 2025.06.18 @ 18:57:10 Player: Mas5akr Result: Destroyed by 0R-GT3(j) with Overtuned Pulse Rifle Performance ------------- Evolutions (0) 0 Regions Visited (3) 600 Robots Destroyed (6) 30 Value Destroyed (258) 258 Prototype IDs (0) 0 Alien Tech Used (0) 0 Bonus (300) 300 TOTAL SCORE: 1188 Bonus ------- Registered with UFD 300 Cogmind --------- Core Integrity 0/250 Matter 145/300 Energy 81/100 System Corruption 3% Temperature Warning (314) Movement Walking (125) Location -7/Scraptown Parts ------- > --- POWER (1) -------- (None) > --- PROPULSION (2) --- Titanium Leg Armored Leg > --- UTILITY (2) ------ Large Storage Unit > --- WEAPON (2) ------- Barrage Gun Mini Grenade Launcher > --- INVENTORY (15) --- Ion Engine Subdweller Power Source Light Treads Medium Treads Aluminum Leg Subdweller Monowheel Subdweller Monowheel Hardened Light Armor Plating Proton Cannon Assault Cannon CPS Tube (2) Katana Scrap Shield Fragment (48) Peak State ------------ > --- POWER ------------ Light Fission Core > --- PROPULSION ------- Improved Medium Treads Armored Leg > --- UTILITY ---------- Large Storage Unit Improved Light Armor Plating > --- WEAPON ----------- Gauss Rifle Assault Cannon > --- INVENTORY -------- Ion Engine Subdweller Power Source Light Treads Medium Treads Aluminum Leg Titanium Leg Subdweller Monowheel Subdweller Monowheel Hardened Light Armor Plating Proton Cannon Barrage Gun Mini Grenade Launcher CPS Tube Katana Scrap Shield Fragment [Rating: 29] Favorites ----------- Power Ion Engine Engine Ion Engine Power Core Light Fission Core Propulsion Light Treads Treads Light Treads Leg Armored Leg Utility Improved Light Armor Plating Device Subdweller Optics Storage Large Storage Unit Protection Improved Light Armor Plating Weapon Assault Rifle Energy Gun Small Laser Ballistic Gun Assault Rifle Ballistic Cannon Assault Cannon Launcher Mini Grenade Launcher Build | -11 -10 -10 -7 ------- Run | Yrd Mat Sub Scr Slots Evolved . | . . . . Power . | . . . . Propulsion . | . . . . Utility . | . . . . Weapon . | . . . . Parts Attached 19 | 6 . 3 10 Power 2 | 1 . . 1 Engine 1 | 1 . . . Core 1 | . . . 1 Reactor . | . . . . Propulsion 6 | 2 . 1 3 Treads 3 | 2 . . 1 Leg 3 | . . 1 2 Wheel . | . . . . Hover . | . . . . Flight . | . . . . Utility 4 | 1 . 1 2 Device 1 | . . 1 . Storage 2 | 1 . . 1 Processor . | . . . . Hackware . | . . . . Protection 1 | . . . 1 Artifact . | . . . . Weapon 7 | 2 . 1 4 Energy Gun 2 | 1 . 1 . Energy Cannon . | . . . . Ballistic Gun 3 | 1 . . 2 Ballistic Cannon 1 | . . . 1 Launcher 1 | . . . 1 Special Weapon . | . . . . Impact Weapon . | . . . . Slashing Weapon . | . . . . Piercing Weapon . | . . . . Special Melee Weapon . | . . . . Unidentified Prototypes . | . . . . Parts Lost 6 | . . 2 4 Power 1 | . . . 1 Propulsion 2 | . . 1 1 Utility 1 | . . . 1 Weapon 2 | . . 1 1 Highest Loss Streak 4 | . . 2 4 To Critical Strikes . | . . . . Average Backups 9 | 3 4 4 11 Power 1 | 1 1 1 2 Propulsion 4 | 1 2 2 5 Utility . | . . . . Weapon 2 | . 1 . 3 Tool/Special . | . . . . Unused Backups 11 | . . . 11 Power 2 | . . . 2 Propulsion 4 | . . . 4 Utility 1 | . . . 1 Weapon 3 | . . . 3 Tool/Special 1 | . . . 1 Average Slot Usage (%) 97 | . 85 92 99 Engine 10 | . 14 14 9 Core 3 | . . . 4 Treads 15 | . 28 18 13 Leg 11 | . . 8 14 Device 2 | . . 8 . Storage 14 | . 14 14 14 Protection 9 | . . . 13 Energy Gun 12 | . 14 14 11 Ballistic Gun 14 | . 14 14 14 Ballistic Cannon 1 | . . . 2 Peak Build Rating 29 | 6 6 9 29 Average Rating 14 | 4 6 7 17 On Entrance 5 | . 6 6 9 Naked Turns . | . . . . Heaviest Build 39 | 14 14 15 39 Greatest Support 40 | 40 40 40 30 Greatest Overweight (x) 1 | 1 . . 1 Average Overweight (x) . | . . . . Largest Inventory Capacity 15 | 8 8 8 15 Average Capacity 12 | 7 8 8 13 Most Carried 15 | 7 4 8 15 Average Carried 10 | 3 4 5 12 Final Capacity 15 | 8 8 8 15 Final Carried 13 | 4 4 6 13 Class Distribution -------------------- 100% | Mutant Dominant Class ---------------- Mutant | -10/Materials Mutant | -10/Subcaves Mutant | -7/Scraptown Resources | -11 -10 -10 -7 ----------- Run | Yrd Mat Sub Scr Matter Collected 459 | 186 . 107 166 Remotely . | . . . . Salvage Created 563 | . . 107 456 Parts 26 | . . 6 20 Haulers Intercepted . | . . . . Recyclers Shooed . | . . . . Parts Field Recycled . | . . . . Retrieved Matter . | . . . . Parts Self-Destructed 8 | . . 4 4 Prevented . | . . . . Kills | -11 -10 -10 -7 ------- Run | Yrd Mat Sub Scr Combat Hostiles Destroyed 6 | . . 2 4 Guns 3 | . . 2 1 Cannons 3 | . . . 3 Classes Destroyed 3 | . . 1 2 Subdweller 2 | . . 2 . Guru 2 | . . . 2 Scrapper 2 | . . . 2 Best Kill Streak 3 | . . 2 3 Combat Bots Only 3 | . . 2 3 Max Kills in Single Turn 1 | . . 1 1 Gunslinging . | . . . . Exploded . | . . . . Melee . | . . . . Uniques/NPCs Destroyed . | . . . . Combat | -11 -10 -10 -7 -------- Run | Yrd Mat Sub Scr Hostile Shots Fired 93 | . . 36 57 Missed 22 | . . 10 12 Hits 71 | . . 26 45 Projectile 71 | . . 26 45 Critical Strikes 3 | . . . 3 Damage Taken 1317 | . . 541 776 Core 257 | . . 128 129 Absorbed by Shields . | . . . . Core Remaining (%) 100 | 100 . . . Volleys Fired 39 | . . 14 25 Largest 2 | . . 2 2 Hottest 65 | . . 60 65 Shots Fired 75 | . . 28 47 Gun 51 | . . 28 23 Cannon 23 | . . . 23 Launcher 1 | . . . 1 Special . | . . . . Kinetic 60 | . . 14 46 Thermal 8 | . . 8 . Explosive 1 | . . . 1 Electromagnetic 6 | . . 6 . Robot Hit Streak 16 | . . 9 16 Robot Miss Streak 2 | . . 2 2 Penetration Max . | . . . . Secondary Targets . | . . . . Shots Hit Robots 60 | . . 24 36 Core Hits 19 | . . 6 13 Critical Kills . | . . . . Critical Parts Destroyed . | . . . . Critical Strikes . | . . . . Melee Attacks . | . . . . Impact . | . . . . Slashing . | . . . . Piercing . | . . . . Sneak Attacks . | . . . . Combat Hostiles . | . . . . Follow-up Attacks . | . . . . Damage Inflicted 1125 | . . 279 846 Guns 620 | . . 279 341 Cannons 401 | . . . 401 Explosions 104 | . . . 104 Melee . | . . . . Ramming . | . . . . Kinetic 877 | . . 135 742 Thermal 78 | . . 78 . Explosive 104 | . . . 104 Electromagnetic 66 | . . 66 . Impact . | . . . . Slashing . | . . . . Piercing . | . . . . Highest Corruption 3 | . . . 3 Average Corruption 2 | . . . 2 Corruption Purged . | . . . . Corruption Blocked . | . . . . Effects 1 | . . . 1 Energy Discharges 1 | . . . 1 Overload Shots . | . . . . Overflow Damage . | . . . . Projectiles . | . . . . Explosions . | . . . . Melee . | . . . . Knockbacks 6 | . . . 6 Impact . | . . . . Kinetic 5 | . . . 5 Secondary 1 | . . . 1 Self-Inflicted Damage . | . . . . Shots . | . . . . Rammed . | . . . . Targets Rammed . | . . . . Kicked . | . . . . Crushed . | . . . . Highest Temperature 302 | . . . 302 Average Temperature 102 | . . . 102 Received Heat Transfer 438 | . . 39 399 Siege Activations . | . . . . Martial Activations . | . . . . Shielding Activations . | . . . . Robots Disrupted . | . . . . Combat Hostiles . | . . . . Robots Corrupted . | . . . . Combat Hostiles . | . . . . Parts Fried . | . . . . Impact Corruptions . | . . . . Robots Melted . | . . . . Combat Hostiles . | . . . . Parts Melted 1 | . . . 1 Heat Transferred 175 | . . 175 . Parts Sabotaged . | . . . . Parts Stolen . | . . . . Parts Stripped . | . . . . Power Chain Reactions . | . . . . Alert | -11 -10 -10 -7 ------- Run | Yrd Mat Sub Scr Maximum Alert Level . | . . . . Low Security (%) 100 | 100 100 . . Level 1 . | . . . . Level 2 . | . . . . Level 3 . | . . . . Level 4 . | . . . . Level 5 . | . . . . High Security . | . . . . Max Security . | . . . . Peak Influence 8 | . 8 . . Initial . | . . . . Average . | . . . . Influence Increases 63 | . 8 30 25 Destroy 0b10 Robot/NC 25 | . . . 25 Successful Hack 8 | . 8 . . Lose Combat Pursuer 30 | . . 30 . Influence Decreases 63 | . 8 . 55 Entered New Map 30 | . . . 30 Time Decay 26 | . 8 . 18 Lost Part 7 | . . . 7 Squads Dispatched . | . . . . Investigation . | . . . . Extermination . | . . . . Reinforcement . | . . . . Assault . | . . . . Garrison . | . . . . Intercept . | . . . . Searches Triggered . | . . . . Construction Impeded . | . . . . Haulers Reinforced . | . . . . Active Scanning Responses . | . . . . Cargo Convoy Interrupts . | . . . . Stealth | -11 -10 -10 -7 --------- Run | Yrd Mat Sub Scr Distress Signals . | . . . . Communications Jammed . | . . . . Distress Signals . | . . . . Times Spotted 12 | . . 6 6 Peak Tracking Total 8 | . . 2 8 Tactical Retreats 1 | . . 1 . Traps | -11 -10 -10 -7 ------- Run | Yrd Mat Sub Scr Traps Triggered . | . . . . Indirectly . | . . . . Trap Hack Attempts . | . . . . Triggered . | . . . . Disarmed . | . . . . Reprogrammed . | . . . . Reused . | . . . . Traps Extracted . | . . . . Installed . | . . . . Triggered . | . . . . Machines | -11 -10 -10 -7 ---------- Run | Yrd Mat Sub Scr Machines Disabled 1 | . . . 1 Max in Single Turn 1 | . . . 1 Machines Repaired . | . . . . Machines Dismantled . | . . . . Machines Sabotaged . | . . . . Overloaded Fab Kills . | . . . . Hacking | -11 -10 -10 -7 --------- Run | Yrd Mat Sub Scr Machines Accessed 6 | . 1 1 4 Terminals 1 | . 1 . . Fabricators . | . . . . Repair Stations . | . . . . Recycling Units . | . . . . Scanalyzers . | . . . . Garrison Access . | . . . . Total Hacks 40 | . 1 5 34 Successful 40 | . 1 5 34 Failed . | . . . . Catastrophic . | . . . . Database Lockouts . | . . . . Manual 1 | . 1 . . Terminals 1 | . 1 . . Fabricators . | . . . . Repair Stations . | . . . . Recycling Units . | . . . . Scanalyzers . | . . . . Garrison Access . | . . . . Terminal Hacks 40 | . 1 5 34 Record 31 | . . 5 26 Robot Analysis 8 | . . . 8 Branch Access Points 1 | . 1 . . Fabricator Hacks . | . . . . Repair Station Hacks . | . . . . Recycling Unit Hacks . | . . . . Scanalyzer . | . . . . Garrison Access Hacks . | . . . . Unauthorized Hacks . | . . . . Terminals . | . . . . Fabricators . | . . . . Repair Stations . | . . . . Recycling Units . | . . . . Scanalyzers . | . . . . Garrison Access . | . . . . Data Cores Recovered . | . . . . Used . | . . . . Hacking Detections . | . . . . Full Trace Events . | . . . . Feedback Events . | . . . . Feedback Blocked . | . . . . Robot Schematics Acquired . | . . . . Robots Built . | . . . . Authchips . | . . . . Time . | . . . . Total Robot Build Rating . | . . . . Part Schematics Acquired . | . . . . Parts Built . | . . . . Authchips . | . . . . Time . | . . . . Total Part Build Rating . | . . . . Parts Repaired . | . . . . Time . | . . . . Parts Recycled . | . . . . Recycled Matter . | . . . . Retrieved Matter . | . . . . Retrieved Components . | . . . . Parts Scanalyzed . | . . . . Part Schematics Acquired . | . . . . Parts Damaged . | . . . . Bothacking | -11 -10 -10 -7 ------------ Run | Yrd Mat Sub Scr Used RIF Installer . | . . . . Robots Hacked . | . . . . Non-combat . | . . . . Combat . | . . . . Robot Hacks Applied . | . . . . Relay Couplers Released . | . . . . Fabnet Peak Effective % . | . . . . Robots Rewired . | . . . . Allies Hacked . | . . . . Hacks Repelled . | . . . . Allies | -11 -10 -10 -7 -------- Run | Yrd Mat Sub Scr Total Allies . | . . . . Largest Group . | . . . . Highest-Rated Group . | . . . . Highest-Rated Ally . | . . . . Total Orders . | . . . . Ally Attacks . | . . . . Total Damage . | . . . . Kills . | . . . . Allies Corrupted . | . . . . Allies Melted . | . . . . Intel | -11 -10 -10 -7 ------- Run | Yrd Mat Sub Scr Active Infowar (turns) 261 | . . 261 . Optics 261 | . . 261 . Robot Analysis Total 8 | . . . 8 Derelict Logs Recovered 3 | . . 1 2 Drone Launches . | . . . . Drone Recoveries . | . . . . Exploration | -11 -10 -10 -7 ------------- Run | Yrd Mat Sub Scr Turns Passed 2362 | 81 160 475 1646 Spaces Moved 1173 | 56 96 231 790 Core 24 | 24 . . . Treads 716 | 32 96 231 357 Legs 433 | . . . 433 Wheels . | . . . . Hover . | . . . . Flight . | . . . . Fastest Speed 50 | 50 160 160 120 Average Speed 181 | 119 160 160 195 Slowest Speed 240 | 160 160 160 240 Overloaded Moves . | . . . . Propulsion Burnouts . | . . . . Robots Hopped . | . . . . Potential Cave-ins . | . . . . Cave-ins Triggered . | . . . . Exploration Rate (%) 24 | 3 11 20 65 Regions Visited 3 Branch Regions 2 Pre-discovered Areas 1 | . . 1 . Known Exits Taken . | . . . . Unknown Exits Taken 3 | 1 1 1 . Scrap Searched 2 | . . . 2 Spaces Dug . | . . . . Terrain Destroyed 4 | . . . 4 Melee . | . . . . Projectile 2 | . . . 2 AOE 2 | . . . 2 Terrain Rammed . | . . . . Walls Destroyed . | . . . . Machines Disabled . | . . . . Actions | -11 -10 -10 -7 --------- Run | Yrd Mat Sub Scr Total 1332 | 70 103 309 850 Wait 70 | . 8 57 5 Move 1170 | 55 95 230 790 Hop . | . . . . Pick Up 26 | 9 . 5 12 Fast Attach 3 | 1 . . 2 Attach 10 | 5 . 3 2 Detach . | . . . . Swap 6 | . . . 6 Drop 8 | . . . 8 Fire 39 | . . 14 25 Melee . | . . . . Ram . | . . . . Kick . | . . . . Crush . | . . . . Escape Stasis . | . . . . Rewire . | . . . . Trap . | . . . . Miscellaneous . | . . . . Route ------- -11/Scrapyard -10/Materials (discovered 3 exits: Min x2 / *Sub) -10/Subcaves (discovered 4 exits: Mat x2 / Rec / *Scr) -7/Scraptown (discovered 1 exit: [*Fac]) History --------- Turn | Location | Event 6 | -11/Scrapyard | Discovered new exit (range 15) 82 | -11/Scrapyard | Entered Materials 103 | -10/Materials | Identified exit to Mines 186 | -10/Materials | Discovered new exit (range 8) 242 | -10/Materials | Entered Subcaves 243 | -10/Subcaves | Approached by a straggling Scientist 304 | -10/Subcaves | A swath of the cavern ceiling suddenly collapsed 311 | -10/Subcaves | Build established: Mutant 511 | -10/Subcaves | Visited Clippyterm 516 | -10/Subcaves | Identified exit to Materials 516 | -10/Subcaves | Identified exit to Recycling 516 | -10/Subcaves | Learned 40 Factory zone layouts 616 | -10/Subcaves | Scientist uncovered a shortcut to Scraptown 716 | -10/Subcaves | Core integrity fell below 50% 717 | -10/Subcaves | Entered Scraptown 1192 | -7/Scraptown | Discovered new exit (range 11) 1303 | -7/Scraptown | Scanned Subdweller tech in exchange for log data 1309 | -7/Scraptown | Learned Factory emergency access door positions 1311 | -7/Scraptown | Learned Factory interactive machine intel 1360 | -7/Scraptown | Visited Fellowship of the Rings 1444 | -7/Scraptown | Visited Cyclists 1567 | -7/Scraptown | Visited UFD Registry 1567 | -7/Scraptown | Registered with UFD as "Bioboard" 1632 | -7/Scraptown | Entered Cyclist Reading Room 1666 | -7/Scraptown | Heard Great Nut preacher, LISTEN AND RECITE! 1702 | -7/Scraptown | Visited Shadow of the Wyrm 2044 | -7/Scraptown | Visited Junk Repository 2161 | -7/Scraptown | Visited Analyses Database 2217 | -7/Scraptown | Visited Science Testing Area 2307 | -7/Scraptown | Attacked by Scraptown defenders 2358 | -7/Scraptown | Core integrity fell below 20% 2363 | -7/Scraptown | Destroyed by 0R-GT3(j) with Overtuned Pulse Rifle Last Messages --------------- 02328_ MN-4SZ(p): "Why does 0b10 have so many dangerous, evil bots?!" 02336_ KF-7JM(p) knocked back. 02338_ Critical hit (Burn: +50). 02339_ Lgt. Deuterium Engine melted. 02339_ Y5-GY5(j) destroyed. 02340_ Imp. Medium Treads destroyed. 02340_ Critical hit (Burn: +50). 02343_ Slug penetrates KF-7JM(p). 02343_ KF-7JM(p) destroyed. 02346_ Slug penetrates MN-4SZ(p). 02346_ MN-4SZ(p) knocked back. 02351_ Gauss Rifle destroyed. 02352_ 0R-GT3(j) knocked back. 02355_ 0R-GT3(j) heat spikes uncontrollably. 02355_ Imp. Light Armor Plating destroyed. 02358_ Lgt. Fission Core destroyed. 02358_ MN-4SZ(p) destroyed. 02361_ System corrupted: Energy discharge (-28). 02363_ Critical hit (Burn: +50). Map ----- +----------------------------------------------------+ | ?????????????????????????????????????????????????? | | ?????????????????????????????????????????????????? | | ?????????????????????????????????????????????????? | | ?????????????????????????????????????????????????? | | ?????????????????????????????????????????????????? | | ?????????????????????????????????????????????????? | | ?????????????????????????????????????????????????? | | ?????????????????????????????????????????????????? | | ?????????????????????????????????????????????????? | | ?????????????????????????????????????????????????? | | ?????????????????????????????????????????????????? | | ?????????????????????????????????????????????????? | | ????????????????? ??????????????????????????????? | | ????????????????? #?????????????????????????????? | | ????????????????# # ??????????????????????????? | | ??????########### #! !????????????????????????? | | #######""""""""## #! !????????????????????????? | | !]#/ ##"" " X "## #! !????????????????????????? | | * #![##"" "## #! !#???????????????????????? | | # [##""" ""## #! !????????????????????????? | | ## ## # ?????????????????????????? | | ## ## # ??????????????????????????? | | ########### ##### ## #?###????###???????????????? | | ########### ##### ## ###;######;#???????????????? | | """"""""""" """"" "" "## % %#???????????????? | | "##@ #???????????????? | | "## !! #???????????????? | | "##%! #???????????????? | | "#[==% % ;#??????????????? | | %*%=%*j ##??????????????? | | """"""""""""""""" ##!!= %[ %#???????????????? | | """"""""""""""""" "# #???????????????? | | ###############"" "## #???????????????? | | ?????????????#"" "###### ####???????????????? | | ?????????????#"" "#?????""??????????????????? | | " ????????????#"" "#????? "??????????????????? | | ??????????????#"" "#?????? ??????????????????? | | ??????????????#"" "#?????????????????????????? | | ?????????????? ?????????????????????????? | | ?????????????? "#?????????????????????????? | | ???????????????"" "#?????????????????????????? | | ???????????????"" "??????????????????????????? | | ????????????????" "??????????????????????????? | | ????????????????" ???????????????????????????? | | ?????????????????? ???????????????????????????? | | ?????????????????????????????????????????????????? | | ?????????????????????????????????????????????????? | | ?????????????????????????????????????????????????? | | ?????????????????????????????????????????????????? | | ?????????????????????????????????????????????????? | +----------------------------------------------------+ Best States ------------- Heat Dissipation 25 Energy Generation 18 Energy Capacity 250 Matter Stores 300 Matter Capacity 300 Sight Range 21 Terrain Scan Density 10 Armor Coverage 150 Evasion (%) 50 Recoil Reduction 2 Item Schematics ----------------- None Robot Schematics ------------------ None Fabricated ------------ Nothing Repaired ---------- Nothing Alien Tech Used ----------------- None Achievements -------------- None Challenges ------------ None Game ------ Seed TerrainTeslaChargecaster Manual? 0 Play Time 00:15:24 Cumulative 73.1 hours Start 2025.06.18 @ 18:41:46 End 2025.06.18 @ 18:57:10 Sessions 1 Manual Loads 0 Difficulty Rogue Special Mode None Game No. 68 Rogue 68 Adventurer 0 Explorer 0 Win Type - Total 1 Types 1/0/0/0/0/0/0/0/0/0 Lore% 53 Gallery% 47 Achievement% 45 Wizard Run 0 Options --------- Layout 1 ASCII 0 Keyboard 0 Movement Mouse Keybinds 0 Fullscreen 2 Font 24/Smallcaps Map View 50x35 Zoom Use 0% Tactical HUD 1 Map Filters NONE Filters NONE Steam 1 RUN: 77b2b112-ed66-4052-b384-5654995a038a